bitfinex/quotes_ETHUSD_20250114
["timestamp","ask_amount","ask_price","bid_price","bid_amount"]
[1736885463903,0.8328,3207.9,3207.3,0.62933938]
[1736885464067,0.04947968,3207.8,3207.3,0.62933938]
[1736885464407,3.16695968,3207.8,3207.3,0.62933938]
[1736885464606,0.7947,3207.4,3207.0,3.24779588]
[1736885464907,3.11799,3207.2,3207.0,3.24779588]
[1736885465066,3.11799,3207.2,3206.7,3.89735506]
[1736885465067,0.84407464,3207.1,3206.7,3.24779588]
[1736885465265,3.11847,3206.7,3206.6,3.24779588]
[1736885465463,4.57062762,3206.7,3206.6,3.24779588]
[1736885465687,3.11876,3206.4,3206.3,3.24779588]
[1736885465891,6.13068094,3206.4,3206.3,3.24779588]
[1736885466079,7.47538094,3206.4,3206.3,3.24779588]
[1736885466432,0.7947,3206.1,3206.0,3.24779588]
[1736885466632,3.75747944,3206.1,3206.0,3.24779588]
[1736885466909,3.806568,3206.1,3205.7,3.24779588]
[1736885467064,4.18231594,3206.1,3205.6,3.24779588]
[1736885467699,7.30136594,3206.1,3205.4,3.24779588]
[1736885467905,3.96283856,3206.1,3205.4,3.24779588]
[1736885468211,3.96283856,3206.1,3205.3,6.24779588]
[1736885468586,3.96283856,3206.1,3205.3,3.0]
[1736885469197,0.84378856,3206.1,3205.3,3.0]
[1736885470104,0.04908856,3206.1,3205.3,2.96277944]
[1736885470308,1.0212,3206.7,3206.0,3.11907]
[1736885470526,0.0454904,3206.6,3205.8,3.0]
[1736885470705,0.8062,3207.6,3206.9,3.11823]
[1736885471011,0.04418891,3207.5,3206.6,0.8066]
[1736885471199,0.04418891,3207.5,3206.7,3.11843]
[1736885471571,0.04418891,3207.5,3206.8,3.11829]
[1736885472520,0.04418891,3207.5,3206.9,3.11826]
[1736885473281,0.04418891,3207.5,3206.6,0.8066]
[1736885473825,0.04418891,3207.5,3207.2,3.1179]
[1736885474086,0.04418891,3207.5,3207.4,3.11779]
[1736885474214,0.8062,3208.5,3207.9,3.11729]
[1736885474607,0.044835,3208.4,3207.9,3.11729]
[1736885474923,0.044835,3208.4,3207.7,3.11746]
[1736885475094,0.044835,3208.4,3207.8,3.11736]
[1736885476366,0.044835,3208.4,3207.7,0.62523814]
[1736885476640,0.044835,3208.4,3207.8,3.11735]
[1736885476811,0.044835,3208.4,3207.7,0.62523814]
[1736885477410,0.8278,3208.8,3207.9,3.11726]
[1736885477942,0.04527611,3208.7,3207.9,3.11726]
[1736885478310,0.04527611,3208.7,3207.8,0.8153]
[1736885478506,0.04527611,3208.7,3208.2,0.8153]
[1736885478711,0.8278,3209.2,3208.3,3.0]
[1736885479014,0.8278,3209.2,3208.2,3.93225]
[1736885479015,0.8278,3209.2,3208.6,3.11659]
[1736885479332,0.8278,3209.2,3208.4,3.1168]
[1736885479333,0.04542318,3209.1,3208.4,3.1168]
[1736885479750,0.04542318,3209.1,3208.5,3.11671]
[1736885479933,0.04542318,3209.1,3208.6,3.11661]
[1736885480321,0.04542318,3209.1,3208.4,3.11681]
[1736885480924,0.04542318,3209.1,3208.3,0.61824177]
[1736885481321,0.39892732,3209.0,3208.2,3.11692]
[1736885481651,0.04232119,3208.9,3208.2,3.11692]
[1736885482037,0.55,3209.1,3208.2,3.11692]
[1736885482240,0.04230052,3208.8,3208.2,3.11692]
[1736885482549,0.04227393,3208.7,3208.2,3.11692]
[1736885482715,0.55,3209.1,3208.2,3.11692]
[1736885482915,0.04234232,3209.0,3208.2,3.11692]
[1736885483124,0.04234232,3209.0,3208.3,0.62079536]
[1736885484345,0.8278,3209.2,3208.6,3.11657]
[1736885484540,0.04236511,3209.1,3208.3,0.62079536]
[1736885484779,0.8278,3210.3,3209.1,3.8153]
[1736885485055,0.8278,3210.3,3209.6,3.11559]
[1736885485367,0.04259193,3210.2,3209.6,3.11559]
[1736885485717,0.04259193,3210.2,3209.1,0.8153]
[1736885485718,3.11522,3210.1,3209.1,0.8153]
[1736885485945,0.35548963,3210.0,3209.1,0.8153]
[1736885486343,0.35548963,3210.0,3209.0,0.63659152]
[1736885486344,3.11556,3209.7,3209.0,0.63659152]
[1736885486535,0.03965797,3209.6,3209.0,0.63659152]
[1736885486741,0.03965797,3209.6,3209.0,3.63659152]
[1736885486950,0.8278,3209.8,3209.0,0.63659152]
[1736885487136,3.15526075,3209.7,3209.0,0.63659152]
[1736885487331,0.39830608,3209.6,3209.0,0.63659152]
[1736885487560,0.39830608,3209.6,3208.6,3.8153]
[1736885487561,0.03963518,3209.5,3208.6,0.8153]
[1736885487935,3.11595,3209.3,3208.4,3.11681]
[1736885488138,3.11595,3209.3,3208.6,0.62279329]
[1736885488337,0.0395803,3209.2,3208.2,3.93228]
[1736885488540,3.11614,3209.1,3208.3,3.0]
[1736885488733,0.04041458,3209.0,3208.3,6.11689]
[1736885489096,0.04041458,3209.0,3208.2,0.8153]
[1736885489355,0.04041458,3209.0,3208.2,3.9323]
[1736885489537,3.11608,3209.2,3208.3,3.0]
[1736885490047,0.04043738,3209.1,3208.3,3.0]
[1736885490243,0.35608912,3209.1,3208.3,3.0]
[1736885490448,3.47222912,3209.1,3208.4,0.62870896]
[1736885490953,0.35608912,3209.1,3208.4,0.62870896]
[1736885491126,0.04043738,3209.1,3208.4,0.62870896]
[1736885491328,0.55,3209.2,3208.4,3.62870896]
[1736885491548,0.03923465,3209.1,3208.4,3.62870896]
[1736885493762,0.03923465,3209.1,3208.8,3.0]
[1736885494087,0.7712,3209.8,3208.9,3.11631]
[1736885494258,1.159856,3209.8,3208.7,3.0]
[1736885494450,1.159856,3209.8,3208.9,3.11631]
[1736885494451,0.03530436,3209.7,3208.9,3.11631]
[1736885494654,0.03530436,3209.7,3208.5,0.7719]
[1736885494856,0.55,3209.2,3208.4,0.62870896]
[1736885495160,0.7712,3209.1,3208.4,3.74544896]
[1736885495365,0.80648139,3209.1,3208.4,3.74544896]
[1736885495943,0.80648139,3209.1,3208.5,3.11667]
[1736885495944,0.7712,3209.1,3208.5,3.11667]
[1736885496266,0.7712,3209.1,3208.6,3.1166]
[1736885496655,0.03695918,3209.0,3208.6,3.1166]
[1736885497170,3.11617,3209.1,3208.4,0.62870896]
[1736885497467,0.55,3208.4,3207.6,3.26011461]
[1736885497766,0.55,3208.4,3207.2,3.7719]
[1736885497767,3.11701,3208.2,3207.2,3.7719]
[1736885497970,0.03639408,3208.1,3207.4,3.63920782]
[1736885498345,0.55,3208.4,3207.4,0.63920782]
[1736885498535,0.03659539,3208.3,3207.8,3.11738]
[1736885498863,0.7712,3208.5,3207.8,3.11738]
[1736885499074,0.03597696,3208.2,3207.6,3.11756]
[1736885499269,0.7712,3208.5,3207.6,3.11756]
[1736885499570,0.03611755,3208.4,3207.6,3.11756]
[1736885500884,0.55,3208.1,3206.8,0.7719]
[1736885501081,0.7712,3208.2,3207.1,3.11803]
[1736885501082,3.11729,3208.0,3207.1,3.11803]
[1736885501282,3.1528232,3208.0,3207.1,3.11803]
[1736885501483,0.0355332,3208.0,3206.8,0.7719]
[1736885501689,3.11796,3207.3,3206.5,3.26011461]
[1736885501855,3.11796,3207.3,3206.2,3.26011461]
[1736885501856,3.11809,3207.1,3206.2,3.26011461]
[1736885502050,0.7712,3206.9,3206.2,3.26011461]
[1736885502288,0.55,3206.8,3206.2,3.26011461]
[1736885502588,3.11873,3206.5,3206.2,3.26011461]
[1736885502788,3.11873,3206.5,3205.5,6.37973461]
[1736885503092,0.7712,3206.3,3205.7,0.63159077]
[1736885503310,0.55,3206.2,3205.0,0.7719]
[1736885503453,0.58475218,3206.2,3205.2,0.63948985]
[1736885503659,3.11916,3206.0,3205.2,0.63948985]
[1736885503855,3.70373218,3206.2,3205.2,0.63948985]
[1736885504057,0.03304788,3205.9,3205.3,3.11981]
[1736885504258,0.03307972,3206.1,3205.3,3.11981]
[1736885504457,0.0330112,3205.8,3205.3,3.11981]
[1736885504759,0.03298835,3205.7,3205.3,3.11981]
[1736885504957,0.7712,3206.3,3205.4,3.11972]
[1736885505177,0.03263041,3206.2,3205.4,3.11972]
[1736885505654,0.03263041,3206.2,3205.5,3.11963]
[1736885505956,0.03263041,3206.2,3205.8,3.11931]
[1736885506296,0.7712,3206.3,3205.8,3.11931]
[1736885506663,0.03258843,3206.2,3205.8,3.11931]
[1736885506988,0.7712,3206.3,3205.8,3.11931]
[1736885507155,0.03258843,3206.2,3205.8,3.11931]
[1736885507361,0.7712,3206.3,3205.6,3.11945]
[1736885507559,0.7712,3206.3,3205.2,6.75933985]
[1736885507560,0.03258843,3206.2,3205.3,3.11983]
[1736885507759,0.7712,3206.3,3205.6,3.11945]
[1736885507982,0.03283518,3206.2,3205.7,3.11939]
[1736885508456,0.03283518,3206.2,3205.2,3.63948985]
[1736885508662,0.03283518,3206.2,3205.7,3.11943]
[1736885508894,0.773,3206.5,3205.7,3.11943]
[1736885509583,0.03284285,3206.4,3205.7,3.11943]
[1736885509781,0.03284285,3206.4,3205.3,6.94048]
[1736885509985,0.03284285,3206.4,3206.0,3.93982]
[1736885510295,0.773,3206.8,3206.0,3.93981]
[1736885510486,0.03297981,3206.3,3206.0,3.93981]
[1736885510686,0.773,3206.8,3206.0,3.93981]
[1736885510885,0.03295697,3206.2,3206.0,0.8207]
[1736885511083,0.773,3206.8,3205.9,0.62025331]
[1736885511475,0.03307113,3206.7,3205.9,0.62025331]
[1736885511879,3.54397724,3206.7,3205.9,0.62025331]
[1736885512098,0.42550724,3206.7,3205.9,0.62025331]
[1736885512297,0.03307113,3206.7,3205.9,0.62025331]
[1736885512477,0.03307113,3206.7,3205.9,3.73944331]
[1736885514587,0.03307113,3206.7,3205.9,0.62025331]
[1736885515181,0.03307113,3206.7,3206.2,3.11895]
[1736885515566,0.03307113,3206.7,3206.0,3.11914]
[1736885515805,0.03307113,3206.7,3206.1,3.11904]
[1736885517363,0.03307113,3206.7,3205.9,3.73946331]
[1736885519203,3.54405724,3206.7,3205.9,0.62025331]
[1736885519501,0.55,3206.3,3205.5,3.11961]
[1736885519704,0.55,3206.3,3205.6,3.0]
[1736885519880,0.0332809,3206.2,3205.6,3.0]
[1736885520079,0.0332809,3206.2,3205.7,0.03119353]
[1736885520277,0.773,3206.6,3205.4,3.0]
[1736885520482,0.03325806,3206.1,3206.0,3.11915]
[1736885520700,0.773,3206.6,3206.0,3.11915]
[1736885520907,0.8115,3207.2,3205.8,4.41119873]
[1736885521069,3.11718,3208.1,3206.5,3.0]
[1736885521266,0.03348638,3207.1,3207.0,3.11817]
[1736885521468,0.8115,3207.9,3207.1,3.11807]
[1736885521708,0.8115,3207.9,3206.9,0.801]
[1736885521875,0.03265041,3207.8,3206.9,0.801]
[1736885522215,0.03265041,3207.8,3206.9,3.91927]
[1736885522504,0.03265041,3207.8,3207.3,3.11785]
[1736885522710,0.03265041,3207.8,3207.4,3.11777]
[1736885523006,0.03265041,3207.8,3207.0,3.14931603]
[1736885523007,0.03265041,3207.8,3207.3,3.11783]
[1736885523505,0.03265041,3207.8,3207.5,3.11767]
[1736885523712,0.03265041,3207.8,3207.7,3.11749]
[1736885523918,0.8115,3208.3,3207.8,3.11732]
[1736885524066,0.215,3209.0,3208.0,3.1172]
[1736885524067,0.8115,3208.8,3208.0,3.1172]
[1736885524468,0.03270513,3208.7,3208.0,3.1172]
[1736885524766,0.03270513,3208.7,3207.9,0.801]
[1736885524972,0.03270513,3208.7,3208.2,3.11695]
[1736885525308,0.03270513,3208.7,3207.9,3.91829]
[1736885525309,0.03270513,3208.7,3208.5,3.11669]
[1736885525604,0.8115,3209.1,3208.2,3.0]
[1736885526110,0.03370142,3209.0,3208.2,6.11692]
[1736885526278,0.03370142,3209.0,3208.6,3.1166]
[1736885526673,0.8115,3209.1,3208.6,3.1166]
[1736885526870,0.03484221,3208.9,3208.6,3.1166]
[1736885527070,0.8115,3209.1,3208.4,3.0]
[1736885527302,0.03501843,3208.8,3208.4,3.0]
[1736885527467,0.8115,3209.1,3207.9,0.801]
[1736885527667,0.03499563,3208.7,3207.9,3.91826]
[1736885527904,0.8115,3209.1,3208.1,3.11704]
[1736885528208,0.03511114,3209.0,3208.3,3.0]
[1736885528516,0.8115,3208.8,3207.8,0.63911311]
[1736885528810,0.03497003,3208.7,3207.8,0.63911311]
[1736885528971,0.03497003,3208.7,3208.3,3.1169]
[1736885529170,0.8115,3208.8,3208.3,3.1169]
[1736885529414,0.03379312,3208.7,3208.3,3.1169]
[1736885529785,0.8115,3208.8,3207.8,0.63911311]
[1736885529992,0.8115,3209.3,3208.4,3.11681]
[1736885530298,0.03390708,3209.2,3208.2,3.11697]
[1736885530816,0.03390708,3209.2,3207.9,3.801]
[1736885530981,0.8115,3209.3,3208.0,6.1172]
[1736885531184,0.8115,3209.3,3208.6,3.11658]
[1736885531505,0.03389661,3209.2,3208.0,3.1172]
[1736885531676,0.03389661,3209.2,3208.1,3.0]
[1736885531876,0.03389661,3209.2,3208.5,3.11671]
[1736885532076,0.03389661,3209.2,3208.1,6.11707]
[1736885532274,0.03389661,3209.2,3208.4,3.0]
[1736885532483,0.03389661,3209.2,3208.4,3.1168]
[1736885532673,0.03389661,3209.2,3208.4,0.61324833]
[1736885532874,3.1162,3209.1,3207.9,0.801]
[1736885533100,3.1162,3209.1,3208.1,3.11708]
[1736885533293,0.8115,3208.9,3208.1,3.11708]
[1736885533693,0.03394761,3208.8,3208.0,3.0]
[1736885534003,0.03394761,3208.8,3208.0,6.1172]
[1736885534523,0.03394761,3208.8,3208.2,0.61012652]
[1736885534816,0.03394761,3208.8,3208.0,6.1172]
[1736885534817,0.43012637,3208.8,3208.0,6.1172]
[1736885535321,0.43012637,3208.8,3208.1,0.63266599]
[1736885535913,3.54656637,3208.8,3207.9,3.0]
[1736885536114,3.54656637,3208.8,3207.7,3.11745]
[1736885536115,3.11653,3208.7,3207.7,3.11745]
[1736885536314,0.7516,3208.6,3207.8,3.11738]
[1736885536520,0.7516,3208.6,3207.6,0.801]
[1736885536521,0.78547668,3208.6,3207.6,0.801]
[1736885536715,0.78547668,3208.6,3208.0,3.11712]
[1736885537012,0.7516,3208.6,3208.0,3.72593536]
[1736885537214,0.03393571,3208.5,3208.0,3.72593536]
[1736885537403,0.03393571,3208.5,3208.2,3.11699]
[1736885537728,0.7516,3208.9,3208.2,3.11699]
[1736885537907,0.03389773,3208.4,3208.2,3.11699]
[1736885538090,0.7516,3208.9,3208.2,3.11699]
[1736885538287,0.0338901,3208.3,3208.2,3.11699]
[1736885538487,0.7516,3208.9,3208.2,3.11699]
[1736885538791,0.0340041,3208.8,3208.2,3.11699]
[1736885539506,0.0340041,3208.8,3208.3,3.1169]
[1736885539706,0.0340041,3208.8,3208.4,3.1168]
[1736885540285,0.0340041,3208.8,3208.0,3.72597536]
[1736885540492,0.0340041,3208.8,3208.7,3.11652]
[1736885540713,0.7516,3209.3,3208.9,3.11625]
[1736885541020,0.03304709,3209.2,3209.0,3.11623]
[1736885541336,0.7516,3209.3,3208.3,0.82]
[1736885541615,0.03317609,3209.2,3208.5,3.1167]
[1736885542394,0.03317609,3209.2,3208.3,3.93685]
[1736885542617,0.03317609,3209.2,3207.9,0.82]
[1736885542823,0.7516,3209.0,3207.9,0.82]
[1736885543020,0.03329698,3208.9,3208.3,3.63186486]
[1736885543403,0.03329698,3208.9,3208.3,0.63186486]
[1736885543602,0.7516,3209.0,3208.3,3.74876486]
[1736885543825,0.03329698,3208.9,3208.3,3.74876486]
[1736885544195,0.7516,3209.0,3208.3,3.74876486]
[1736885544399,0.03329698,3208.9,3208.3,3.74876486]
[1736885544606,0.7516,3209.0,3208.3,3.74876486]
[1736885544838,0.03329698,3208.9,3208.3,3.74876486]
[1736885545532,0.03329698,3208.9,3208.5,3.0]
[1736885545834,0.03329698,3208.9,3208.3,0.63186486]
[1736885546131,0.03329698,3208.9,3208.7,3.11643]
[1736885546324,0.03329698,3208.9,3208.8,3.11642]
[1736885546521,0.7516,3209.3,3208.5,3.0]
[1736885546720,0.7516,3209.3,3208.8,3.11642]
[1736885546898,0.03267819,3209.2,3208.6,3.11658]
[1736885547942,0.03267819,3209.2,3208.7,3.11651]
[1736885548707,0.03267819,3209.2,3208.8,3.11642]
[1736885548953,0.03267819,3209.2,3208.3,3.63186486]
[1736885548954,0.03267819,3209.2,3208.6,3.11658]
[1736885549151,0.7516,3209.3,3208.6,3.11658]
[1736885549372,0.03275408,3209.2,3208.6,3.11658]
[1736885550042,0.7516,3209.1,3208.3,0.63186486]
[1736885550251,3.11625,3209.0,3208.3,0.63186486]
[1736885550450,3.14900403,3209.0,3208.2,3.117]
[1736885550638,0.03275403,3209.0,3208.2,3.117]
[1736885550955,0.03275403,3209.0,3208.2,0.63985813]
[1736885551150,0.03275403,3209.0,3208.3,3.11691]
[1736885554087,0.03275403,3209.0,3208.2,1.45985813]
[1736885554238,0.03275403,3209.0,3208.4,3.11681]
[1736885554438,0.03275403,3209.0,3208.2,1.45985813]
[1736885554672,0.03275403,3209.0,3208.7,3.11651]
[1736885554970,0.03275403,3209.0,3208.9,3.11633]
[1736885555173,0.03275403,3209.0,3208.9,3.93633]
[1736885555374,0.7516,3210.5,3208.9,3.78008055]
[1736885555541,0.7516,3210.5,3208.7,3.0]
[1736885555542,0.7516,3210.5,3209.3,3.0]
[1736885555740,0.03308774,3210.4,3209.8,3.11544]
[1736885556051,0.03308774,3210.4,3209.6,3.0]
[1736885556241,0.03308774,3210.4,3209.6,6.11561]
[1736885556571,0.7516,3210.5,3209.8,3.11542]
[1736885556792,0.03300227,3210.4,3209.8,3.11542]
[1736885556996,0.03300227,3210.4,3210.1,3.1151]
[1736885557161,0.7516,3210.9,3210.1,3.1151]
[1736885557362,0.7516,3210.9,3210.0,0.62000111]
[1736885557363,0.03321093,3210.8,3210.0,0.62000111]
[1736885557989,3.86571,3211.2,3210.2,6.11499]
[1736885558191,0.03325592,3211.1,3210.1,3.0]
[1736885558376,0.03325592,3211.1,3210.3,3.11491]
[1736885558695,0.03325592,3211.1,3210.1,3.11514]
[1736885558899,0.03325592,3211.1,3210.0,0.62000111]
[1736885559062,0.7976,3210.8,3209.7,6.37566461]
[1736885559266,0.7976,3210.8,3209.8,0.60919948]
[1736885559267,3.91212,3210.8,3209.8,0.60919948]
[1736885559467,3.11468,3210.6,3209.8,0.60919948]
[1736885559872,0.03311608,3210.5,3209.8,0.60919948]
[1736885562070,0.391212,3210.7,3209.8,0.60919948]
[1736885562269,0.03312188,3210.4,3209.8,0.60919948]
[1736885562477,0.55,3210.7,3209.8,0.60919948]
[1736885562684,0.03311428,3210.3,3209.8,3.72457948]
[1736885562897,3.6646,3210.7,3209.8,3.72457948]
[1736885563098,0.03309151,3210.2,3209.8,0.60919948]
[1736885563305,3.6646,3210.7,3209.8,0.60919948]
[1736885563606,3.1147,3210.6,3209.8,0.60919948]
[1736885563918,0.03315224,3210.5,3209.8,0.60919948]
[1736885564822,0.03315224,3210.5,3209.4,3.26011461]
[1736885564823,0.55,3210.4,3209.4,3.26011461]
[1736885565004,0.55,3210.4,3209.1,3.91213754]
[1736885565005,0.03377693,3210.3,3209.2,3.26011461]
[1736885565207,0.03377693,3210.3,3209.5,0.63680554]
[1736885565208,3.11517,3210.1,3209.5,0.63680554]
[1736885565520,0.03368204,3210.0,3209.3,3.0]
[1736885565725,0.03368204,3210.0,3209.3,6.11584]
[1736885566092,3.11499,3210.3,3209.3,6.11584]
[1736885566297,0.03360173,3209.9,3209.3,6.11584]
[1736885566500,3.11509,3210.2,3209.3,6.11584]
[1736885566702,0.03357895,3209.8,3209.3,6.11584]
[1736885566924,3.11509,3210.2,3209.3,6.11584]
[1736885567122,3.11509,3210.2,3209.3,3.0]
[1736885567295,0.03364728,3210.1,3209.5,0.61397677]
[1736885567497,3.14881728,3210.1,3209.5,0.61397677]
[1736885567802,0.25,3211.5,3208.6,3.11654]
[1736885567803,0.55,3209.9,3209.0,6.37633461]
[1736885568002,0.03362268,3209.8,3209.1,3.0]
[1736885568302,0.03362268,3209.8,3209.3,0.62209155]
[1736885569121,3.11474,3210.6,3209.6,3.11561]
[1736885569335,3.32549,3210.8,3209.8,3.11538]
[1736885569518,0.03368995,3210.5,3209.6,3.1156]
[1736885569720,3.1147,3210.6,3209.6,3.1156]
[1736885569935,0.03366718,3210.4,3209.6,3.1156]
[1736885570097,0.03368995,3210.5,3209.8,3.11538]
[1736885570302,0.03364441,3210.3,3209.8,3.11538]
[1736885570631,3.11458,3210.7,3209.8,3.11538]
[1736885570939,0.40012251,3210.6,3209.5,3.26011461]
[1736885571235,0.03366451,3210.6,3209.7,3.11551]
[1736885571399,0.55,3210.8,3209.5,3.26011461]
[1736885571735,3.14891171,3210.7,3209.6,6.11557]
[1736885571941,3.14891171,3210.7,3209.8,0.6359491]
[1736885572138,3.11473,3210.6,3209.8,0.6359491]
[1736885572309,3.11482,3210.5,3209.8,0.6359491]
[1736885572514,3.14900617,3210.5,3209.8,0.6359491]
[1736885572711,3.11491,3210.4,3209.8,0.6359491]
[1736885572929,0.7984,3210.3,3209.8,0.6359491]
[1736885573224,0.83264424,3210.3,3209.8,0.6359491]
[1736885573405,0.83264424,3210.3,3209.5,6.11571]
[1736885573740,0.7984,3210.1,3209.6,0.63844595]
[1736885574031,0.03419901,3210.0,3209.6,0.63844595]
[1736885574620,0.7984,3210.1,3209.6,0.63844595]
[1736885574799,0.7984,3210.1,3209.7,3.11547]
[1736885577144,0.7984,3210.1,3209.9,3.11535]
[1736885577355,0.7984,3210.1,3209.7,3.11551]
[1736885578615,0.7984,3210.1,3209.7,3.11555]
[1736885578807,0.7984,3210.1,3209.8,3.11545]
[1736885579007,0.03305357,3210.0,3209.8,3.11545]
[1736885579210,0.03305357,3210.0,3209.9,3.11536]
[1736885579439,0.03305357,3210.0,3209.7,3.11548]
[1736885579646,0.7984,3210.1,3209.7,3.11548]
[1736885580252,0.7984,3210.1,3209.6,1.39804595]
[1736885580451,0.8058,3211.3,3210.5,3.1147]
[1736885580639,0.8058,3211.3,3210.0,3.7784]
[1736885580640,0.03109142,3211.2,3210.6,3.11467]
[1736885580881,0.03109142,3211.2,3210.0,3.7784]
[1736885580882,0.7556,3211.1,3210.3,3.11489]
[1736885581046,0.7556,3211.1,3210.1,3.0]
[1736885581248,0.03104361,3211.0,3210.1,6.11511]
[1736885581448,0.03104361,3211.0,3210.4,3.11479]
[1736885581947,0.03104361,3211.0,3210.3,3.11493]
[1736885582184,0.03104361,3211.0,3210.1,6.1151]
[1736885582358,0.03104361,3211.0,3210.5,3.73754467]
[1736885582782,0.03104361,3211.0,3210.3,3.11492]
[1736885583092,0.7556,3210.7,3210.1,0.63395486]
[1736885583450,0.7556,3210.5,3209.6,3.86727]
[1736885583756,0.78650518,3210.4,3209.6,3.11557]
[1736885583961,0.78650518,3210.4,3209.7,3.0]
[1736885584304,0.78650518,3210.4,3209.3,0.7517]
[1736885584305,0.7556,3210.1,3209.3,3.86764]
[1736885584501,0.7556,3209.9,3209.2,6.37614461]
[1736885584674,0.7556,3209.9,3209.4,3.0]
[1736885585004,0.7556,3210.2,3209.8,3.11543]
[1736885585353,0.7556,3210.2,3209.7,3.0]
[1736885585550,0.7556,3210.2,3209.4,0.7517]
[1736885585787,3.11411,3211.2,3210.0,3.0]
[1736885585788,0.7556,3211.1,3210.0,3.0]
[1736885586087,0.7556,3211.1,3210.5,3.11477]
[1736885586291,0.7556,3211.1,3210.7,3.11451]
[1736885586584,0.7556,3211.1,3210.6,3.0]
[1736885586898,0.7556,3211.1,3210.4,3.0]
[1736885587484,0.7556,3211.1,3210.4,6.11487]
[1736885587796,0.7556,3211.1,3210.2,0.7517]
[1736885587995,0.03050151,3211.0,3210.4,3.11487]
[1736885588174,0.03050151,3211.0,3210.5,0.62578003]
[1736885588876,0.03050151,3211.0,3210.5,3.74052003]
[1736885589196,0.7556,3211.1,3210.8,3.1144]
[1736885589595,0.03063198,3211.0,3210.7,0.7517]
[1736885589800,0.7556,3211.1,3210.5,1.37748003]
[1736885589974,0.03063198,3211.0,3210.5,1.37748003]
[1736885590175,0.7556,3211.1,3210.5,3.0]
[1736885590375,0.03072101,3211.0,3210.3,3.0]
[1736885590590,0.7556,3210.9,3210.3,3.0]
[1736885590779,0.03067548,3210.8,3210.3,3.0]
[1736885590978,0.7556,3210.9,3210.4,0.6158214]
[1736885591194,0.7556,3210.9,3210.5,3.11475]
[1736885591389,0.03067548,3210.8,3210.4,0.6158214]
[1736885591567,0.7556,3211.3,3210.4,0.6158214]
[1736885591967,0.03070893,3211.2,3210.4,0.6158214]
[1736885592277,0.7556,3211.3,3210.8,3.11443]
[1736885592779,0.03078152,3211.2,3210.6,3.86634]
[1736885593093,0.7556,3211.3,3210.4,1.3675214]
[1736885593290,0.7556,3211.3,3210.6,3.11459]
[1736885593702,0.7556,3211.3,3210.9,0.61731899]
[1736885594013,0.03078911,3211.2,3210.9,0.61731899]
[1736885594168,0.7556,3211.3,3210.9,0.61731899]
[1736885594399,0.1667551,3211.4,3211.3,3.114]
[1736885594603,0.1667551,3211.4,3211.3,6.89683592]
[1736885594813,0.1667551,3211.4,3211.3,6.8657]
[1736885595412,0.1667551,3211.4,3211.3,6.114]
[1736885595637,0.1667551,3211.4,3211.3,9.37411461]
[1736885595831,0.1667551,3211.4,3211.3,6.114]
[1736885596402,0.1667551,3211.4,3211.3,3.0]
[1736885597105,0.9384551,3211.4,3211.3,3.0]
[1736885597615,0.9384551,3211.4,3210.6,3.26011461]
[1736885597814,0.9384551,3211.4,3210.7,3.11455]
[1736885597998,0.9384551,3211.4,3210.7,0.62926198]
[1736885598218,0.9384551,3211.4,3210.6,6.37479461]
[1736885598546,0.9384551,3211.4,3210.6,3.11468]
[1736885598709,0.9384551,3211.4,3210.7,3.11455]
[1736885599933,0.9384551,3211.4,3210.6,0.60879818]
[1736885601040,0.9384551,3211.4,3210.7,3.11458]
[1736885601260,0.9384551,3211.4,3210.6,0.60879818]
[1736885601419,0.7717,3211.1,3210.4,3.0]
[1736885601615,0.7717,3211.0,3210.4,3.0]
[1736885602450,3.1144,3210.9,3210.3,0.63144035]
[1736885602649,0.7717,3210.8,3210.1,3.26011461]
[1736885602830,0.7717,3210.7,3210.0,3.26011461]
[1736885603026,3.50322,3210.7,3210.0,3.26011461]
[1736885603229,3.50322,3210.7,3209.7,3.26011461]
[1736885603230,0.7717,3210.2,3209.7,3.26011461]
[1736885603635,0.7717,3210.2,3209.5,3.26011461]
[1736885603829,3.11436,3211.0,3209.9,3.11533]
[1736885604017,3.16279302,3211.2,3209.7,2.95679302]
[1736885604018,0.7717,3210.9,3209.7,2.95679302]
[1736885604219,0.7717,3210.9,3210.2,3.11506]
[1736885604651,0.7717,3210.9,3210.2,3.11507]
[1736885604853,0.7717,3210.9,3210.5,3.0]
[1736885605522,0.7717,3211.3,3210.7,3.11453]
[1736885607358,0.7717,3211.3,3210.7,3.7413531]
[1736885609131,0.7717,3211.3,3210.7,0.6268231]
[1736885610161,0.7717,3211.3,3210.8,0.0311411]
[1736885610365,0.7717,3211.3,3210.9,3.11436]
[1736885610525,0.7717,3211.3,3210.7,0.6268231]
[1736885610948,3.88572,3211.3,3210.7,0.6268231]
[1736885611151,0.7717,3211.3,3210.7,0.6268231]
[1736885611356,4.0,3211.0,3210.7,3.7413831]
[1736885612466,4.0,3211.0,3210.8,3.11446]
[1736885613240,4.0,3211.0,3210.9,3.11439]
[1736885613439,4.0,3211.0,3210.9,6.11439]
[1736885614179,4.0,3211.0,3210.9,3.0]
[1736885614554,4.0,3211.0,3210.7,0.6268231]
[1736885615460,4.0,3211.0,3210.4,3.0]
[1736885615659,0.7717,3210.9,3210.5,0.63005143]
[1736885616904,0.7717,3210.9,3210.3,6.26011461]
[1736885617293,1.26030311,3210.9,3210.3,3.26011461]
[1736885617584,4.37474311,3210.9,3210.2,0.615471]
[1736885617781,0.7717,3210.8,3210.2,0.615471]
[1736885619569,0.7717,3210.8,3210.2,4.66178561]
[1736885619890,4.0,3211.0,3210.5,3.11473]
[1736885620385,4.0,3211.0,3210.4,3.11484]
[1736885620986,4.0,3211.0,3210.7,3.11456]
[1736885621161,4.0,3211.0,3210.9,6.11439]
[1736885621367,4.0,3211.0,3210.9,6.90059]
[1736885621754,4.0,3211.0,3210.9,7.52698025]
[1736885622552,0.1667551,3211.4,3210.9,2.74078025]
[1736885623084,0.1667551,3211.4,3210.9,6.00303963]
[1736885623788,0.1667551,3211.4,3210.9,2.74078025]
[1736885624680,0.1667551,3211.4,3210.9,9.11741963]
[1736885625068,0.1667551,3211.4,3211.0,3.26225938]